bitfinex-derivatives/quotes_ETHF0:USTF0_20250209
["timestamp","ask_amount","ask_price","bid_price","bid_amount"]
[1739108768144,3.2078,2634.2,2633.6,3.2078]
[1739108768845,3.2078,2634.2,2633.6,3.2135006]
[1739108769046,0.0057006,2634.2,2633.6,3.2135006]
[1739108769250,0.0057006,2634.2,2633.9,3.2078]
[1739108769854,0.0057006,2634.2,2633.6,3.2135006]
[1739108770153,0.0057006,2634.2,2633.9,3.2078]
[1739108770453,0.0057006,2634.2,2634.0,0.7846]
[1739108771353,0.0057006,2634.2,2634.0,8.6180277]
[1739108772452,0.0057006,2634.2,2634.0,0.7846]
[1739108773455,0.0057006,2634.2,2634.0,1.526]
[1739108777850,0.0057006,2634.2,2634.1,0.7841]
[1739108778555,0.0057006,2634.2,2634.1,8.6175277]
[1739108779159,0.0057006,2634.2,2634.1,49.4175277]
[1739108779356,0.0057006,2634.2,2634.1,48.6334277]
[1739108779857,0.0057006,2634.2,2634.1,7.8334277]
[1739108780755,0.0057006,2634.2,2634.0,1.526]
[1739108781059,0.0057006,2634.2,2634.1,4.8276729]
[1739108781753,0.0057006,2634.2,2634.1,45.6276729]
[1739108781948,0.0057006,2634.2,2634.1,51.6276729]
[1739108782154,0.0057006,2634.2,2634.1,45.6276729]
[1739108783160,3.2078,2634.9,2634.1,51.6276729]
[1739108783361,3.2078,2634.9,2634.5,3.2078]
[1739108785661,3.2078,2634.9,2634.4,3.2078]
[1739108787756,0.0057006,2635.0,2634.4,3.2078]
[1739108791662,0.0057006,2635.0,2634.5,40.8]
[1739108791867,0.0057006,2635.0,2634.8,3.2078]
[1739108792264,0.767,2635.5,2634.9,1.5035]
[1739108792465,3.9775,2635.8,2634.9,8.28974668]
[1739108792664,3.9775,2635.8,2635.1,3.2078]
[1739108793461,3.2078,2635.5,2634.9,1.5035]
[1739108793671,3.2078,2635.5,2634.8,3.2078]
[1739108794267,3.2078,2635.2,2634.5,1.856]
[1739108794463,3.2078,2635.2,2634.6,3.2078]
[1739108794668,3.2078,2635.2,2634.6,0.0057006]
[1739108794869,3.2078,2635.2,2634.6,3.2135006]
[1739108795765,3.2078,2635.5,2634.6,11.0412277]
[1739108796167,3.2078,2635.5,2634.6,3.2135006]
[1739108796477,3.2078,2635.2,2634.6,0.0057006]
[1739108796665,1.5576,2635.1,2634.6,0.0057006]
[1739108799661,0.53128,2634.8,2634.0,3.2078]
[1739108799864,3.2078,2634.9,2634.0,3.2078]
[1739108800067,3.2078,2634.9,2634.1,40.8]
[1739108800068,0.53127,2634.8,2634.1,40.8]
[1739108800260,3.2078,2634.9,2634.1,40.8]
[1739108800458,1.5576,2635.1,2634.3,3.2078]
[1739108800862,1.5576,2635.1,2634.4,0.0057006]
[1739108803076,1.5576,2635.1,2634.4,7.8334277]
[1739108803772,1.5576,2635.1,2634.4,0.0057006]
[1739108804069,3.2078,2635.5,2635.0,3.2078]
[1739108804374,0.0057006,2635.7,2634.9,1.844]
[1739108804574,0.0057006,2635.7,2635.2,3.2078]
[1739108805674,0.0057006,2635.7,2635.3,40.8]
[1739108805973,0.0057006,2635.7,2635.3,45.72803686]
[1739108806368,0.0057006,2635.7,2635.5,3.2078]
[1739108807078,0.0057006,2635.7,2635.5,5.0488]
[1739108807874,0.0057006,2635.7,2635.5,1.841]
[1739108810674,0.0057006,2635.7,2635.6,3.2078]
[1739108810972,0.0057006,2635.7,2635.5,7.8277271]
[1739108811176,0.0057006,2635.7,2635.2,1.835]
[1739108812879,0.0057006,2635.7,2635.3,3.2078]
[1739108813180,0.0057006,2635.7,2635.3,8.19202309]
[1739108816081,0.0057006,2635.7,2635.3,16.01975019]
[1739108816877,0.0057006,2635.7,2635.4,40.8]
[1739108817081,0.0057006,2635.7,2635.4,48.6277271]
[1739108818177,0.0057006,2635.7,2635.4,40.8]
[1739108818483,0.0057006,2635.7,2634.4,0.0057006]
[1739108818484,3.2078,2635.5,2634.4,0.0057006]
[1739108818779,3.2078,2635.5,2634.6,4.9144]
[1739108818981,3.2078,2635.5,2634.5,46.56023927]
[1739108819181,3.2078,2635.2,2634.5,41.6271]
[1739108819378,3.73899,2635.2,2634.5,40.8]
[1739108819581,3.2078,2635.2,2634.5,40.8]
[1739108819982,3.2078,2635.2,2634.5,44.0078]
[1739108820384,5.56331,2635.6,2634.5,51.8355271]
[1739108820570,1.8244,2635.6,2635.0,3.2078]
[1739108820877,3.2078,2637.3,2635.3,9.5098]
[1739108821077,0.8849,2636.9,2636.2,3.2078]
[1739108821380,5.03944899,2636.9,2636.0,1.863]
[1739108821578,0.8849,2636.9,2635.9,1.864]
[1739108821781,4.36905975,2636.8,2635.9,1.864]
[1739108821970,0.00568904,2636.7,2636.1,0.00568904]
[1739108822282,0.00568904,2636.7,2636.1,3.21348904]
[1739108822485,0.00568904,2636.7,2636.6,3.2078]
[1739108822783,15.83800579,2637.1,2636.6,5.0858]
[1739108822979,15.83800579,2637.1,2637.0,3.2078]
[1739108823183,15.83800579,2637.1,2637.0,44.0078]
[1739108824572,0.00568904,2637.3,2637.0,48.92298183]
[1739108825774,0.00568904,2637.3,2636.6,3.2078]
[1739108826788,0.00568904,2637.3,2637.1,3.2078]
[1739108827786,0.00568904,2637.3,2637.1,11.0355271]
[1739108827987,0.00568904,2637.3,2636.9,1.878]
[1739108828381,0.00568904,2637.3,2636.5,3.2078]
[1739108828783,0.00568904,2637.3,2635.7,0.29876171]
[1739108828784,3.2078,2637.1,2636.1,3.21348904]
[1739108829080,0.86158904,2637.3,2636.1,3.21348904]
[1739108829384,3.2078,2637.1,2636.1,3.21348904]
[1739108829580,7.32673408,2637.1,2636.1,3.21348904]
[1739108829881,3.2078,2637.1,2636.4,3.2078]
[1739108831076,3.2078,2637.1,2636.1,3.21348904]
[1739108831282,3.2078,2636.8,2636.1,3.21348904]
[1739108831582,0.8327,2636.7,2636.1,3.21348904]
[1739108834185,0.8327,2636.7,2636.1,2.71348904]
[1739108834385,0.9079,2636.6,2636.1,2.71348904]
[1739108835385,0.9079,2636.6,2636.1,2.71917808]
[1739108836782,0.9079,2636.6,2636.1,2.21917808]
[1739108837184,1.4388,2636.6,2636.1,2.21917808]
[1739108837887,0.53101,2636.1,2635.2,3.2078]
[1739108838080,0.8352,2636.0,2635.2,3.2078]
[1739108838390,4.83765422,2636.0,2635.3,40.8]
[1739108838882,0.8352,2636.0,2635.3,40.8]
[1739108839085,0.00568904,2635.9,2635.4,0.00568904]
[1739108839685,0.5311,2635.7,2634.6,4.0482]
[1739108839889,3.2078,2635.5,2634.6,4.0482]
[1739108840191,3.2078,2635.5,2634.9,3.2078]
[1739108840989,3.2078,2635.5,2634.9,3.21348904]
[1739108842084,3.2078,2635.5,2634.9,0.00568904]
[1739108842591,3.2078,2635.5,2634.9,3.21348904]
[1739108842792,0.8656,2635.8,2634.9,3.21348904]
[1739108843193,0.00568904,2635.9,2635.2,3.2078]
[1739108843786,0.00568904,2635.9,2634.9,3.21348904]
[1739108845588,0.00568904,2635.9,2635.2,3.2078]
[1739108846590,0.00568904,2635.9,2634.9,5.06548904]
[1739108846790,0.00568904,2635.9,2634.9,3.21348904]
[1739108846791,3.2078,2635.7,2634.9,3.21348904]
[1739108847000,3.2078,2635.4,2634.9,3.21348904]
[1739108847289,0.9251,2635.3,2634.9,2.71348904]
[1739108847992,0.9251,2635.3,2634.7,40.8]
[1739108848491,3.2078,2635.4,2634.8,3.2078]
[1739108848997,0.9251,2635.8,2634.8,3.2078]
[1739108849596,0.5311,2635.7,2634.8,3.2078]
[1739108849794,3.2078,2635.6,2634.8,3.2078]
[1739108850299,3.2078,2635.3,2634.7,40.8]
[1739108852602,3.73897,2635.3,2634.7,40.8]
[1739108853092,3.2078,2635.3,2634.7,40.8]
[1739108853292,0.53118,2635.2,2634.6,0.8404]
[1739108853993,0.53121,2635.1,2634.6,0.8404]
[1739108854191,0.5312,2635.2,2634.6,0.8404]
[1739108854597,3.2078,2635.3,2634.5,41.628]
[1739108854798,3.73907,2634.8,2634.2,3.2078]
[1739108855197,3.2078,2634.8,2634.2,44.0078]
[1739108855603,3.2078,2635.1,2634.5,3.2078]
[1739108855803,3.2078,2635.1,2634.6,1.7211]
[1739108857494,3.73902,2635.1,2634.6,1.7211]
[1739108857693,3.2078,2635.1,2634.6,1.7211]
[1739108861200,3.2078,2635.1,2634.2,44.0078]
[1739108861609,0.53124,2635.0,2634.2,44.0078]
[1739108861906,3.2078,2635.1,2634.2,44.0078]
[1739108862902,3.2078,2635.1,2634.5,3.2078]
[1739108863105,3.2078,2635.1,2634.6,2.6223]
[1739108864106,3.2078,2635.1,2634.2,44.0078]
[1739108864307,0.53123,2635.0,2634.3,0.9089]
[1739108865809,0.53122,2635.0,2634.3,0.9089]
[1739108867608,3.2078,2635.1,2634.3,0.9089]
[1739108867809,0.53123,2635.0,2634.3,0.9089]
[1739108868008,4.55891755,2635.0,2634.3,0.9089]
[1739108868210,4.02768755,2635.0,2634.3,0.9089]
[1739108868417,3.2078,2635.1,2634.5,3.2078]
[1739108868620,3.2078,2635.1,2634.6,1.7755]
[1739108871215,3.2078,2635.1,2634.6,9.6032271]
[1739108872325,3.73888,2635.8,2634.9,3.2078]
[1739108872523,3.2078,2635.8,2635.2,3.2078]
[1739108872719,0.92888904,2635.9,2635.3,1.7939]
[1739108872720,0.00568904,2635.9,2635.3,1.7939]
[1739108873121,0.00568904,2635.9,2635.4,40.8]
[1739108873513,0.00568904,2635.9,2635.5,3.2078]
[1739108873720,0.00568904,2635.9,2635.6,0.8657]
[1739108874825,3.2078,2635.7,2634.9,3.2078]
[1739108875126,0.53111,2635.6,2634.8,0.8752]
[1739108875426,3.73896,2635.4,2634.8,0.8752]
[1739108875621,0.9373,2635.3,2634.8,0.8752]
[1739108875822,3.2078,2635.1,2634.6,1.7241]
[1739108876021,3.2078,2635.1,2634.2,3.2078]
[1739108876232,5.06988635,2635.0,2634.2,4.0735]
[1739108876417,3.2078,2634.8,2634.2,4.0735]
[1739108876623,0.9373,2634.7,2634.2,4.0735]
[1739108877720,0.8771,2635.0,2634.2,4.0735]
[1739108878121,3.2078,2635.4,2634.5,3.2078]
[1739108878321,4.1036,2635.7,2634.6,0.8796]
[1739108878724,8.46548436,2635.7,2634.8,3.2078]
[1739108878923,8.46548436,2635.7,2634.9,0.939]
[1739108879428,4.1036,2635.7,2634.9,1.7984]
[1739108880533,0.8882,2635.8,2634.9,1.7984]
[1739108881433,8.13187602,2635.7,2634.9,1.7984]
[1739108883224,7.60078602,2635.7,2634.9,0.939]
[1739108884026,8.13187602,2635.7,2634.9,0.939]
[1739108884219,8.13188602,2635.7,2634.9,0.939]
[1739108884420,8.13188602,2635.7,2634.6,3.2078]
[1739108884421,3.2078,2635.4,2634.6,3.2078]
[1739108884627,3.2078,2635.1,2634.6,3.2078]
[1739108884931,0.87,2635.0,2634.6,3.2078]
[1739108885626,0.87,2635.0,2633.4,6.302]
[1739108885831,3.2078,2633.2,2631.9,8.88866877]
[1739108886039,3.73963,2632.0,2631.9,0.54266877]
[1739108886330,3.73963,2632.0,2631.8,8.78020953]
[1739108886331,0.53185,2631.9,2631.8,8.78020953]
[1739108886531,0.19008806,2631.9,2631.3,17.38483588]
[1739108886720,3.2078,2631.4,2631.2,20.28404953]
[1739108886925,0.53219,2630.3,2629.9,29.00595044]
[1739108887128,2.52335879,2630.0,2629.9,2.59023102]
[1739108887324,4.26034942,2630.0,2629.2,25.67560025]
[1739108887523,3.2078,2629.3,2629.2,23.68090882]
[1739108887724,3.2078,2629.3,2629.2,11.59981177]
[1739108887725,5.2958,2629.3,2629.2,11.59981177]
[1739108887937,4.05249919,2629.3,2629.2,9.78701177]
[1739108888228,5.3028,2629.9,2629.2,12.49481177]
[1739108888429,4.05249919,2629.3,2629.2,12.49481177]
[1739108888624,4.05249919,2629.3,2629.2,9.28701177]
[1739108888826,4.14478252,2629.4,2629.2,9.28701177]
[1739108889333,7.59035705,2629.3,2629.2,8.78701177]
[1739108889530,3.2078,2629.3,2629.2,8.78701177]
[1739108889729,13.59035705,2629.3,2629.2,8.28701177]
[1739108890437,13.59035705,2629.3,2629.2,7.28701177]
[1739108890734,13.59035705,2629.3,2628.2,4.115]
[1739108890932,2.119,2629.2,2628.2,4.115]
[1739108891337,12.20991094,2629.2,2628.2,4.115]
[1739108891534,3.2078,2628.7,2628.3,11.4008]
[1739108891927,4.26047601,2628.6,2628.3,11.4008]
[1739108892130,4.26047601,2628.6,2628.2,3.2078]
[1739108892328,4.26047601,2628.6,2628.2,14.6086]
[1739108892733,0.06047601,2628.6,2628.4,11.4008]
[1739108892938,0.00569995,2628.8,2628.5,3.2078]
[1739108893142,0.00569995,2628.8,2628.7,11.4008]
[1739108893434,3.2078,2629.7,2628.7,19.2285271]
[1739108893632,3.2078,2629.3,2628.9,11.4008]
[1739108893839,4.28212101,2629.6,2629.2,40.8]
[1739108894037,3.2078,2629.7,2629.2,40.8]
[1739108894329,4.35272073,2629.6,2629.2,40.8]
[1739108894535,3.2078,2629.4,2629.2,40.80569995]
[1739108894730,3.2078,2629.4,2629.2,40.30569995]
[1739108895032,4.10774269,2629.3,2629.2,39.30569995]
[1739108895239,4.64012269,2629.3,2629.2,0.00569995]
[1739108895439,0.53241,2629.2,2628.3,3.2078]
[1739108895731,3.2078,2629.0,2628.3,3.2078]
[1739108896131,0.14544309,2628.9,2628.3,3.2078]
[1739108896334,2.126,2628.8,2628.3,3.2078]
[1739108896534,2.126,2628.8,2627.5,40.8]
[1739108896839,4.00143992,2628.7,2627.9,11.4008]
[1739108897134,4.00143992,2628.7,2628.0,11.4008]
[1739108897340,7.20923992,2628.7,2628.0,11.4008]
[1739108897733,9.34323992,2628.7,2627.7,3.2078]
[1739108897934,9.87573992,2628.7,2627.7,14.6086]
[1739108898132,9.34323992,2628.7,2627.7,14.6086]
[1739108898442,3.2078,2628.4,2627.7,3.2078]
[1739108898931,3.96122563,2628.3,2628.1,3.2078]
[1739108899139,3.96692558,2628.3,2627.9,14.6086]
[1739108899334,0.00569995,2628.3,2627.9,3.2078]
[1739108899541,0.00569995,2628.3,2627.4,3.2078]
[1739108899542,4.41535332,2628.2,2627.4,3.2078]
[1739108899733,4.41535332,2628.2,2627.6,11.4008]
[1739108900034,3.2078,2628.0,2627.4,3.2078]
[1739108900236,3.2078,2627.7,2626.8,3.2078]
[1739108900436,4.33393484,2627.9,2627.4,3.2078]
[1739108900639,3.46219287,2627.6,2627.4,2.7078]
[1739108900833,3.46219287,2627.6,2627.0,3.2078]
[1739108901032,3.2078,2628.0,2627.0,3.2078]
[1739108901330,3.2078,2627.4,2627.0,3.2078]
[1739108901628,4.16752319,2627.3,2626.3,3.2078]
[1739108901834,3.2078,2627.1,2626.5,11.4008]
[1739108902233,3.83927177,2627.0,2626.7,11.4008]
[1739108902433,3.83927177,2627.0,2626.3,3.2078]
[1739108902633,3.83927177,2627.0,2626.5,11.4008]
[1739108902939,3.83927177,2627.0,2626.3,14.6086]
[1739108903137,3.83927177,2627.0,2626.7,11.4008]
[1739108903340,3.83927177,2627.0,2626.5,11.4008]
[1739108903933,3.83927177,2627.0,2626.6,40.8]
[1739108904132,3.2078,2626.8,2626.3,14.6086]
[1739108904429,3.2078,2626.8,2626.3,3.2078]
[1739108904632,3.2078,2626.5,2625.7,3.2078]
[1739108904933,4.00712341,2626.7,2626.4,11.4008]
[1739108905133,3.2078,2626.8,2626.4,11.4008]
[1739108905334,4.01759301,2626.6,2625.6,3.2078]
[1739108905642,4.01759301,2626.7,2625.9,11.4008]
[1739108905841,3.2078,2626.3,2625.7,11.4008]
[1739108906136,3.99708304,2626.2,2625.6,3.2078]
[1739108906440,0.5333,2624.8,2623.6,3.2078]
[1739108906632,2.42650682,2626.1,2623.6,3.2078]
[1739108906633,3.2078,2624.5,2623.6,3.2078]
[1739108906836,2.292,2624.4,2623.9,3.2078]
[1739108907133,3.2078,2624.1,2623.4,3.2078]
[1739108907337,5.6058,2624.1,2623.1,3.2078]
[1739108907530,3.2078,2623.8,2623.2,3.2078]
[1739108907828,0.00571091,2624.3,2623.9,11.4008]
[1739108907829,4.14155174,2624.2,2623.9,11.4008]
[1739108908032,2.93659097,2623.7,2623.5,11.4008]
[1739108908231,2.93659097,2623.7,2623.4,3.2078]
[1739108908433,3.2078,2624.0,2622.9,3.2078]
[1739108908633,4.14155174,2623.6,2623.2,3.2078]
[1739108908938,1.00968949,2623.7,2623.2,3.2078]
[1739108909237,1.00968949,2623.7,2622.5,40.8]
[1739108909238,3.2078,2623.4,2622.6,3.2078]
[1739108909537,3.2078,2622.8,2622.3,20.90755466]
[1739108909948,3.40782603,2622.7,2622.6,3.2078]
[1739108910237,4.2341196,2623.5,2622.6,3.2078]
[1739108910440,4.2341196,2623.5,2623.4,3.2078]
[1739108910740,0.751,2623.9,2623.4,14.6086]
[1739108910948,0.751,2623.9,2623.8,14.6086]
[1739108911238,3.2078,2624.7,2623.8,14.6086]
[1739108911441,3.2078,2624.7,2624.6,40.8]
[1739108911836,13.34065768,2624.7,2623.6,0.00571091]
[1739108912039,3.2078,2624.4,2623.8,11.4008]
[1739108912534,4.34655564,2624.3,2624.0,11.4008]
[1739108912733,3.2078,2624.7,2624.3,11.4008]
[1739108912936,0.00571091,2624.9,2624.4,11.4008]
[1739108913138,4.10751274,2624.6,2624.3,11.4008]
[1739108913345,4.10751274,2624.6,2624.1,44.0078]
[1739108913346,3.2078,2624.7,2624.1,40.8]
[1739108913741,4.10751274,2624.6,2624.3,11.4008]
[1739108914037,3.2078,2624.7,2624.1,44.0078]
[1739108914239,3.2078,2624.4,2624.1,40.8]
[1739108914445,3.2078,2624.4,2623.8,3.2078]
[1739108914644,0.85345512,2624.3,2623.8,3.2078]
[1739108914844,0.85345512,2624.3,2623.8,55.4086]
[1739108915145,0.85345512,2624.3,2624.2,11.4008]
[1739108915335,0.85345512,2624.3,2624.1,14.6086]
[1739108915536,0.85345512,2624.3,2624.1,0.88729358]
[1739108916040,4.41733487,2624.4,2624.2,4.09509358]
[1739108916246,4.41733487,2624.7,2624.6,0.88729358]
[1739108916544,3.2078,2625.2,2624.8,0.88729358]
[1739108916837,3.2078,2625.2,2624.9,0.88729358]
[1739108917041,3.2078,2625.2,2624.3,0.9406]
[1739108917042,4.18652191,2624.7,2624.3,0.9406]
[1739108917241,3.2078,2624.6,2624.3,1.82789358]
[1739108917442,2.521,2625.6,2624.6,0.88729358]
[1739108917443,3.2078,2624.9,2624.6,0.88729358]
[1739108917643,2.66296,2628.3,2624.8,0.88729358]
[1739108917644,3.2078,2625.2,2624.8,0.88729358]
[1739108917841,3.2078,2625.2,2624.6,3.2078]
[1739108918041,3.2078,2625.2,2625.1,0.88729358]
[1739108918342,3.21351091,2625.2,2625.1,0.88729358]
[1739108918941,3.21351091,2625.2,2624.6,3.21351091]
[1739108919242,7.5880827,2625.2,2625.1,0.88729358]
[1739108919450,8.53271091,2625.2,2623.7,3.2078]
[1739108919740,3.2078,2624.2,2623.7,3.2078]
[1739108920148,3.2078,2624.2,2624.1,0.88729358]
[1739108920447,3.2078,2624.2,2624.1,0.38729358]
[1739108920842,3.2078,2624.5,2624.1,0.38729358]
[1739108921046,3.2078,2624.8,2624.0,3.74124]
[1739108921242,3.2078,2624.8,2624.0,3.2078]
[1739108921542,3.2078,2624.8,2623.9,3.45981091]
[1739108921543,3.2078,2624.8,2624.7,0.38729358]
[1739108921736,3.21351091,2625.2,2624.7,0.38729358]
[1739108921941,3.21351091,2625.2,2625.1,0.38729358]
[1739108922240,3.21351091,2625.2,2624.5,0.8973]
[1739108922645,3.2078,2624.8,2624.5,0.8973]
[1739108922838,3.2078,2624.8,2623.9,0.93781091]
[1739108923036,4.1075536,2625.2,2623.9,0.93781091]
[1739108923037,3.2078,2624.4,2623.9,0.93781091]
[1739108924041,3.2078,2624.7,2624.0,3.2078]
[1739108924465,3.2078,2624.4,2623.7,3.2078]
[1739108924641,3.2078,2624.4,2624.1,0.53342]
[1739108924841,3.2078,2624.7,2624.1,3.2078]
[1739108925045,3.2078,2624.7,2624.1,3.74122]
[1739108925243,3.2078,2624.7,2623.8,3.2078]
[1739108925447,3.2078,2624.7,2623.7,0.5335]
[1739108925448,3.2078,2624.4,2623.9,40.8]
[1739108925643,3.2078,2624.4,2623.5,3.74134]
[1739108926049,3.2078,2624.4,2623.5,44.54134]
[1739108926351,3.2078,2624.4,2623.6,0.53352]
[1739108926552,3.2078,2624.4,2623.5,44.0078]
[1739108926851,3.2078,2624.7,2623.8,3.2078]
[1739108927046,3.2078,2624.7,2624.3,0.53339]
[1739108927245,3.2078,2624.7,2624.1,0.53341]
[1739108927444,3.2078,2624.7,2624.2,0.53341]
[1739108927748,3.2078,2624.7,2624.1,3.2078]
[1739108927950,3.2078,2624.7,2624.3,0.53338]
[1739108928248,3.2078,2624.7,2624.1,3.2078]
[1739108928451,3.2078,2624.7,2624.0,1.7999]
[1739108928855,3.2078,2624.7,2624.1,0.53343]
[1739108929355,3.2078,2624.7,2624.1,0.53341]
[1739108929557,3.2078,2625.0,2624.3,0.53337]
[1739108929851,3.2078,2625.0,2624.2,5.00207088]
[1739108930049,3.2078,2624.7,2624.0,1.7999]
[1739108930252,3.2078,2624.7,2623.9,3.2078]
[1739108930253,3.2078,2624.4,2623.9,3.2078]
[1739108930548,3.2078,2624.4,2623.6,2.476]
[1739108930752,3.2078,2624.4,2623.5,44.0078]
[1739108931155,3.2078,2624.0,2623.5,44.0078]
[1739108932654,3.2078,2624.3,2623.5,44.54135]
[1739108932857,3.2078,2624.3,2623.5,44.0078]
[1739108933249,3.2078,2624.0,2623.5,44.0078]
[1739108934755,3.2078,2624.0,2623.5,3.2078]
[1739108935257,3.2078,2624.0,2623.2,2.98061]
[1739108935757,0.00571091,2623.9,2623.3,40.8]
[1739108936460,62.39527037,2623.9,2623.3,40.8]
[1739108936653,62.39527037,2623.9,2623.2,2.9806]
[1739108937357,62.39527037,2623.9,2623.4,3.2078]
[1739108937553,62.39527037,2623.9,2623.5,40.8]
[1739108937758,62.39527037,2623.9,2623.5,46.34865363]
[1739108937960,62.39527037,2623.9,2623.5,45.81511363]
[1739108938160,37.23112123,2623.8,2623.5,45.81511363]
[1739108938358,37.23112123,2623.8,2623.5,40.8]
[1739108938550,37.23112123,2623.8,2623.4,3.2078]
[1739108939363,3.2078,2623.7,2623.1,1.749]
[1739108939560,3.2078,2623.7,2622.9,3.2078]
[1739108940060,40.43892123,2623.7,2623.6,0.00995129]
[1739108941052,40.43892123,2623.7,2622.6,3.2078]
[1739108941260,3.2078,2623.3,2622.6,3.2078]
[1739108941655,3.2078,2623.3,2622.6,44.0078]
[1739108941960,3.2078,2622.7,2622.3,5.04501679]
[1739108942159,4.20710522,2623.2,2622.0,0.00277369]
[1739108942160,3.2078,2622.4,2622.0,0.00277369]
[1739108942660,5.11705566,2622.6,2621.2,3.2078]
[1739108942661,3.2078,2622.1,2621.2,3.2078]
[1739108942868,3.2078,2621.8,2621.2,3.2078]
[1739108943163,3.2078,2621.5,2621.1,11.96519866]
[1739108943461,3.2078,2620.8,2619.9,19.13249766]
[1739108943659,3.2078,2620.0,2619.8,3.06029499]
[1739108943859,2.498,2619.9,2619.5,8.35978864]
[1739108944055,3.2078,2619.6,2619.5,8.35978864]
[1739108944262,3.2078,2619.6,2619.5,2.96286123]
[1739108944457,3.2078,2619.6,2618.7,32.48557379]
[1739108944458,9.2078,2619.6,2618.7,32.48557379]
[1739108944664,0.30933927,2620.2,2618.7,32.48557379]
[1739108944665,3.2078,2618.8,2618.7,32.48557379]
[1739108944969,5.8228,2618.8,2617.6,2.36273127]
[1739108945165,7.0218,2617.6,2616.7,38.80809565]
[1739108945462,3.814,2617.6,2617.2,15.2616]
[1739108945665,0.00572191,2617.4,2616.8,3.2078]
[1739108945868,0.07641462,2617.3,2616.7,38.23129564]
[1739108946162,3.2078,2617.2,2616.7,38.23129564]
[1739108946362,0.00572191,2617.4,2617.1,3.2078]
[1739108946560,0.00572191,2617.4,2616.7,38.23129564]
[1739108946761,4.36094338,2617.2,2616.7,38.23129564]
[1739108946969,4.36094338,2617.2,2616.7,37.73129564]
[1739108947170,4.36094338,2617.2,2617.1,14.1173]
[1739108947371,4.42898729,2617.3,2617.1,17.3251]
[1739108947576,4.42898729,2617.3,2617.2,14.1173]
[1739108947577,4.19009145,2617.3,2617.2,14.1173]
[1739108947878,4.19009145,2617.3,2617.1,3.2078]
[1739108948077,0.00572191,2617.4,2616.9,3.2078]
[1739108948377,4.2557636,2617.1,2616.8,14.1173]
[1739108948577,66.66836531,2617.1,2616.8,14.1173]
[1739108948779,3.4466256,2617.0,2616.3,0.15360002]
[1739108948973,3.4466256,2617.0,2616.3,14.27090002]
[1739108949173,0.09330007,2616.6,2616.4,14.1173]
[1739108949370,0.09330007,2616.6,2616.3,14.27090002]
[1739108949775,0.2388256,2616.5,2616.3,0.15360002]
[1739108950182,0.33212567,2616.6,2616.4,17.3251]
[1739108950383,0.03212567,2616.6,2616.5,14.1173]
[1739108950680,4.36518939,2616.8,2616.5,17.3251]
[1739108950868,4.36518939,2616.8,2616.7,14.1173]
[1739108951074,4.33306372,2616.8,2616.3,0.15360002]
[1739108951269,3.99688873,2617.0,2616.3,14.1173]
[1739108951572,3.2078,2616.4,2615.7,0.15360002]
[1739108951781,3.2078,2615.8,2614.7,3.2078]
[1739108952081,3.2078,2614.9,2614.6,14.1173]
[1739108952274,3.2078,2615.2,2614.3,17.3251]
[1739108952477,0.88628367,2614.8,2614.3,14.1173]
[1739108952773,3.036,2614.8,2614.4,3.2078]
[1739108952984,4.29116527,2615.1,2614.7,17.3251]
[1739108953173,0.00573296,2615.5,2615.0,17.3251]
[1739108953377,3.90421841,2615.3,2615.1,14.1173]
[1739108953782,4.15892997,2615.4,2614.7,0.15360002]
[1739108954077,12.03861373,2614.7,2614.2,3.2078]
[1739108954575,12.03861373,2614.7,2614.6,54.9173]
[1739108955086,0.00573296,2615.5,2615.0,14.1173]
[1739108955376,0.00573296,2615.5,2615.4,14.1173]
[1739108955576,0.00573296,2615.5,2615.1,4.93856964]
[1739108955577,0.00573296,2615.5,2615.2,14.1173]
[1739108955778,4.35225762,2615.5,2614.6,1.7602]
[1739108956080,4.35225762,2615.5,2615.1,14.1173]
[1739108956278,4.35225762,2615.5,2615.2,17.3251]
[1739108956483,4.35225762,2615.5,2615.1,13.6173]
[1739108956681,4.35225762,2615.5,2615.4,40.8]
[1739108956980,7.56005762,2615.5,2615.2,13.6173]
[1739108957283,7.56005762,2615.5,2614.6,4.0928]
[1739108957483,3.2078,2614.9,2614.7,54.4173]
[1739108957782,3.2078,2614.9,2614.6,13.6173]
[1739108958076,4.37741703,2614.8,2614.0,3.2078]
[1739108958285,4.37741703,2614.8,2614.3,3.2078]
[1739108958477,0.00573296,2615.5,2614.6,3.2078]
[1739108958871,4.41532874,2615.3,2614.6,3.2078]
[1739108959071,4.41532874,2615.4,2615.1,3.2078]
[1739108959285,0.00573296,2615.5,2615.1,3.2078]
[1739108959481,2.79123401,2615.2,2615.1,3.2078]
[1739108959877,2.79123401,2615.2,2615.1,5.8696846]
[1739108960073,2.79123401,2615.2,2615.1,5.3696846]
[1739108960481,5.99903401,2615.2,2614.2,3.2078]
[1739108960676,3.2078,2615.0,2614.2,8.5774846]
[1739108961180,3.2078,2615.0,2614.6,3.2078]
[1739108961383,2.79123401,2615.2,2614.6,3.2078]
[1739108961583,2.79123401,2615.2,2614.9,3.2078]
[1739108961779,3.21353296,2615.5,2614.9,3.2078]
[1739108961975,0.00573296,2615.5,2614.9,3.2078]
[1739108962379,1.0459154,2616.0,2615.3,3.2078]
[1739108962581,5.99903401,2616.7,2615.6,3.2078]
[1739108962784,5.99903401,2616.7,2616.2,3.2078]
[1739108962785,2.79123401,2616.7,2616.2,3.2078]
[1739108963080,4.18685101,2617.0,2616.6,3.2078]
[1739108963281,4.18685101,2617.0,2615.7,3.065]
[1739108963282,4.18685101,2617.0,2616.3,3.2078]
[1739108963689,0.00573296,2616.9,2616.4,0.00573296]
[1739108964085,0.00573296,2616.9,2616.5,5.04142147]
[1739108964286,0.00573296,2616.9,2616.7,3.2078]
[1739108964484,0.00573296,2616.9,2616.7,40.8]
[1739108964684,0.00573296,2616.9,2616.0,3.058]
[1739108964986,0.00573296,2616.9,2616.1,5.41033263]
[1739108965188,3.21353296,2616.9,2616.3,40.8]
[1739108965383,0.00573296,2616.9,2616.3,40.8]
[1739108965683,0.00573296,2616.9,2616.7,3.2078]